bitfinex-derivatives/quotes_SOLF0:USTF0_20250831
["timestamp","ask_amount","ask_price","bid_price","bid_amount"]
[1756612200080,334.38,205.65,205.58,1.35102716]
[1756612200281,334.38,205.65,205.6,1.35102716]
[1756612200482,454.06,205.65,205.61,7.22]
[1756612200786,7.3,205.64,205.61,7.22]
[1756612201189,7.3,205.64,205.52,7.22]
[1756612201490,446.76,205.65,205.6,7.22]
[1756612201686,7.3,205.64,205.6,7.22]
[1756612202490,327.08,205.65,205.6,7.22]
[1756612202690,446.84,205.65,205.6,7.22]
[1756612202887,7.3,205.64,205.6,7.22]
[1756612203087,7.3,205.64,205.57,7.22]
[1756612203282,7.3,205.64,205.38,647.04]
[1756612203588,7.3,205.64,205.53,7.22]
[1756612205695,7.3,205.61,205.53,7.22]
[1756612205893,120.2,205.6,205.53,7.22]
[1756612207595,7.3,205.61,205.53,9.32753114]
[1756612207899,127.45,205.65,205.56,7.94]
[1756612208095,120.14,205.65,205.59,7.94]
[1756612208898,7.31,205.66,205.58,2.10753114]
[1756612209190,7.31,205.66,205.59,7.94]
[1756612211598,120.4,205.67,205.55,10.04753114]
[1756612211898,7.31,205.66,205.55,10.04753114]
[1756612212091,7.31,205.64,205.55,7.94]
[1756612212698,2.10753114,205.62,205.55,7.94]
[1756612212898,127.61,205.61,205.55,7.94]
[1756612213398,7.31,205.61,205.55,7.94]
[1756612213696,16.57,205.61,205.55,7.94]
[1756612214799,9.26,205.61,205.51,7.94]
[1756612214997,7.31,205.6,205.51,7.94]
[1756612215595,7.31,205.58,205.51,7.94]
[1756612216195,2.10753114,205.56,205.51,7.94]
[1756612216493,7.31,205.55,205.47,7.94]
[1756612217293,9.41753114,205.55,205.47,7.94]
[1756612219498,2.10753114,205.52,205.41,7.94]
[1756612219702,7.31,205.51,205.41,7.94]
[1756612220803,9.41753114,205.51,205.41,7.94]
[1756612221003,27.35753114,205.54,205.42,7.94]
[1756612223306,9.41753114,205.54,205.42,7.94]
[1756612229507,7.31,205.54,205.42,7.94]
[1756612231812,7.31,205.54,205.44,7.94]
[1756612239708,2.10753114,205.53,205.44,7.94]
[1756612240014,7.29,205.52,205.44,7.94]
[1756612240912,7.29,205.52,205.45,7.67]
[1756612265231,2.10753114,205.54,205.45,7.67]
[1756612265729,7.29,205.53,205.45,7.67]
[1756612270037,9.39753114,205.53,205.45,7.67]
[1756612273640,7.29,205.53,205.45,7.67]
[1756612273841,9.39753114,205.53,205.45,7.67]
[1756612274443,7.2,205.62,205.45,7.67]
[1756612274742,7.2,205.57,205.45,7.67]
[1756612275341,9.30753114,205.57,205.45,7.67]
[1756612280246,85.80753114,205.57,205.45,7.67]
[1756612280546,108.76753114,205.57,205.45,7.67]
[1756612286053,129.22753114,205.57,205.45,7.67]
[1756612291250,1.3505963,205.53,205.46,1.3505963]
[1756612291455,7.2,205.52,205.46,1.3505963]
[1756612295360,7.2,205.52,205.45,9.0205963]
[1756612299860,1.3505963,205.53,205.45,9.0205963]
[1756612300066,1.3505963,205.51,205.45,7.67]
[1756612300266,7.3,205.5,205.45,7.67]
[1756612300467,1.3505963,205.51,205.45,7.67]
[1756612300673,7.3,205.5,205.45,7.67]
[1756612301666,1.3505963,205.51,205.45,7.67]
[1756612302466,7.3,205.55,205.45,7.67]
[1756612302665,1.3505963,205.5,205.43,11.3505963]
[1756612302966,8.6505963,205.5,205.44,7.91]
[1756612305867,1.3505963,205.48,205.43,10.0]
[1756612306061,1.3505963,205.48,205.43,17.91]
[1756612306367,7.3,205.47,205.44,7.91]
[1756612307269,1.3505963,205.48,205.44,7.91]
[1756612307465,7.3,205.47,205.44,7.91]
[1756612310571,1.3505963,205.48,205.44,7.91]
[1756612310869,7.3,205.46,205.44,7.91]
[1756612312273,1.3505963,205.46,205.43,17.91]
[1756612312473,46.72,205.53,205.43,17.91]
[1756612312669,1.3505963,205.46,205.43,17.91]
[1756612312874,7.3,205.45,205.43,17.91]
[1756612315377,1.3505963,205.46,205.43,10.0]
[1756612315573,7.3,205.45,205.43,10.0]
[1756612315973,1.3505963,205.46,205.43,10.0]
[1756612316475,1.3505963,205.44,205.43,10.0]
[1756612316676,8.6505963,205.44,205.43,10.0]
[1756612317075,7.78,205.44,205.43,10.0]
[1756612317276,8.6505963,205.44,205.43,10.0]
[1756612322178,9.1305963,205.44,205.43,10.0]
[1756612322779,7.78,205.44,205.43,10.0]
[1756612322974,8.6505963,205.44,205.43,10.0]
[1756612326278,9.1305963,205.44,205.36,7.91]
[1756612326579,1.3505963,205.41,205.35,7.91]
[1756612327082,1.3505963,205.39,205.35,7.91]
[1756612327986,8.6705963,205.39,205.27,7.34]
[1756612328182,1.3505963,205.37,205.27,7.34]
[1756612328483,1.3505963,205.37,205.31,7.34]
[1756612330882,14.62,205.57,205.31,8.6905963]
[1756612331088,1.3505963,205.38,205.31,8.6905963]
[1756612331887,7.32,205.42,205.33,1.3505963]
[1756612332088,1.3505963,205.41,205.34,7.34]
[1756612332491,7.32,205.42,205.34,7.34]
[1756612332693,1.3505963,205.4,205.34,8.6905963]
[1756612334794,1.3505963,205.42,205.36,1.3505963]
[1756612334994,1.3505963,205.42,205.37,7.34]
[1756612336189,1.3505963,205.44,205.37,7.34]
[1756612339698,1.3505963,205.42,205.37,7.34]
[1756612339898,1.3505963,205.4,205.37,7.34]
[1756612340196,8.6705963,205.4,205.37,7.34]
[1756612340790,8.6705963,205.4,205.33,1.3505963]
[1756612340990,8.6705963,205.4,205.34,7.34]
[1756612342400,7.32,205.4,205.34,7.34]
[1756612342702,8.6705963,205.4,205.34,7.34]
[1756612343200,1.3505963,205.4,205.34,7.34]
[1756612346201,7.31,205.43,205.34,7.34]
[1756612346402,1.3505963,205.41,205.34,7.34]
[1756612351304,7.31,205.43,205.34,7.34]
[1756612351500,1.3505963,205.4,205.34,7.34]
[1756612352806,8.6605963,205.41,205.34,7.34]
[1756612358812,1.3505963,205.39,205.34,7.34]
[1756612359012,1.3505963,205.37,205.32,7.27]
[1756612359312,8.6605963,205.37,205.3,7.27]
[1756612360708,8.6605963,205.37,205.26,7.27]
[1756612360709,1.3505963,205.35,205.26,7.27]
[1756612361012,1.3505963,205.35,205.3,7.27]
[1756612361207,1.3505963,205.35,205.29,1.3505963]
[1756612361609,1.3505963,205.35,205.3,7.27]
[1756612361812,1.3505963,205.35,205.29,1.3505963]
[1756612362108,1.3505963,205.35,205.3,7.27]
[1756612362313,1.3505963,205.35,205.29,1.3505963]
[1756612362814,1.3505963,205.35,205.3,7.27]
[1756612363009,1.3505963,205.35,205.29,1.3505963]
[1756612363210,1.3505963,205.35,205.3,7.27]
[1756612363914,1.3505963,205.35,205.24,7.27]
[1756612364214,1.3505963,205.35,205.3,7.27]
[1756612364416,1.3505963,205.35,205.29,1.3505963]
[1756612365307,1.3505963,205.35,205.3,7.27]
[1756612365615,7.31,205.34,205.29,1.3505963]
[1756612365814,1.3505963,205.35,205.3,7.27]
[1756612368416,7.31,205.38,205.32,7.27]
[1756612368612,8.6605963,205.38,205.32,7.27]
[1756612372417,7.31,205.38,205.32,7.27]
[1756612372717,8.6605963,205.38,205.32,7.27]
[1756612376320,7.31,205.5,205.34,7.27]
[1756612376518,88.22,205.49,205.34,7.27]
[1756612376819,1.3505963,205.41,205.34,7.27]
[1756612377020,7.31,205.4,205.34,7.27]
[1756612377716,1.3505963,205.41,205.34,7.27]
[1756612378222,8.6605963,205.41,205.34,7.27]
[1756612379217,8.6605963,205.41,205.36,7.27]
[1756612379424,8.6605963,205.41,205.35,1.3505963]
[1756612379625,8.6605963,205.41,205.36,7.27]
[1756612379820,1.3505963,205.43,205.36,7.27]
[1756612380323,1.3505963,205.43,205.37,1.3505963]
[1756612380525,1.3505963,205.43,205.38,7.27]
[1756612381024,1.3505963,205.45,205.4,7.27]
[1756612381220,1.3505963,205.45,205.39,1.3505963]
[1756612381427,85.68,205.49,205.4,7.27]
[1756612381428,1.3505963,205.46,205.4,7.27]
[1756612381628,8.6605963,205.46,205.4,7.27]
[1756612383932,1.3505963,205.45,205.39,1.3505963]
[1756612384133,1.3505963,205.45,205.4,7.27]
[1756612385533,1.3505963,205.45,205.39,1.3505963]
[1756612385729,8.6605963,205.45,205.39,8.6205963]
[1756612386030,7.31,205.45,205.39,8.6205963]
[1756612386235,8.6605963,205.47,205.39,8.6205963]
[1756612386434,8.6605963,205.45,205.39,8.6205963]
[1756612386635,8.6605963,205.45,205.39,7.27]
[1756612386830,1.3505963,205.43,205.36,1.3505963]
[1756612387134,1.3505963,205.43,205.37,7.27]
[1756612387436,7.31,205.44,205.38,1.3505963]
[1756612387733,7.31,205.44,205.39,7.95]
[1756612387928,1.3505963,205.45,205.39,7.95]
[1756612388130,1.3505963,205.45,205.4,1.3505963]
[1756612388332,8.6605963,205.47,205.41,7.95]
[1756612389837,8.6605963,205.47,205.32,8.26]
[1756612390041,7.31,205.44,205.38,7.95]
[1756612391239,1.3505963,205.43,205.38,7.95]
[1756612391537,1.3505963,205.47,205.4,7.95]
[1756612396537,8.6605963,205.48,205.42,7.95]
[1756612397743,7.31,205.48,205.42,7.95]
[1756612397944,8.6605963,205.48,205.42,7.95]
[1756612400048,1.3505963,205.5,205.44,7.95]
[1756612401554,7.31,205.53,205.46,7.95]
[1756612401852,8.6605963,205.53,205.46,7.95]
[1756612402250,126.93,205.56,205.48,7.95]
[1756612402548,7.29,205.54,205.48,7.95]
[1756612402952,1.3505963,205.53,205.45,1.3505963]
[1756612403152,7.29,205.52,205.45,9.3005963]
[1756612403354,7.29,205.52,205.47,1.3505963]
[1756612403553,7.29,205.52,205.48,7.95]
[1756612403950,7.29,205.52,205.47,1.3505963]
[1756612404156,7.29,205.52,205.48,7.95]
[1756612404455,1.3505963,205.54,205.48,7.95]
[1756612404953,7.29,205.55,205.48,7.95]
[1756612405349,1.3505963,205.54,205.48,7.95]
[1756612406052,7.29,205.51,205.45,9.3005963]
[1756612406951,1.3505963,205.52,205.48,7.95]
[1756612407148,327.16,205.57,205.51,1.3505963]
[1756612407349,328.5105963,205.57,205.51,1.3505963]
[1756612407751,335.8005963,205.57,205.5,9.3005963]
[1756612409257,335.8005963,205.57,205.5,7.95]
[1756612409258,334.45,205.57,205.5,7.95]
[1756612409553,7.29,205.56,205.48,7.95]
[1756612413260,9.39940497,205.56,205.48,7.95]
[1756612416866,7.29,205.54,205.48,7.95]
[1756612418067,120.0,205.53,205.44,2.10940497]
[1756612418268,127.28,205.53,205.45,7.56]
[1756612419767,120.06,205.52,205.45,7.56]
[1756612419966,7.28,205.53,205.45,7.56]
[1756612420167,120.06,205.52,205.45,7.56]
[1756612421570,7.28,205.51,205.45,7.56]
[1756612422469,127.34,205.51,205.45,7.56]
[1756612423870,127.28,205.5,205.39,7.56]
[1756612424563,7.28,205.5,205.39,7.56]
[1756612424765,7.28,205.48,205.39,7.56]
[1756612425163,127.3,205.48,205.39,7.56]
[1756612425670,129.40940497,205.48,205.39,7.56]
[1756612428773,7.28,205.44,205.34,7.56]
[1756612429071,7.28,205.41,205.34,7.56]
[1756612434277,7.28,205.39,205.34,7.56]
[1756612434470,7.28,205.39,205.29,7.56]
[1756612440581,7.28,205.39,205.3,7.56]
[1756612441176,58.68,205.41,205.3,7.56]
[1756612441380,7.28,205.42,205.3,7.56]
[1756612442084,7.28,205.42,205.29,2.10940497]
[1756612442085,7.28,205.42,205.33,7.56]
[1756612442587,7.28,205.5,205.39,7.56]
[1756612443588,7.28,205.5,205.32,9.76]
[1756612443589,7.28,205.5,205.42,7.56]
[1756612444389,11.12940497,205.54,205.42,7.56]
[1756612444688,7.28,205.53,205.42,7.56]
[1756612445091,7.28,205.53,205.44,2.10940497]
[1756612445286,7.28,205.53,205.45,7.56]
[1756612450293,7.28,205.53,205.45,2.10940497]
[1756612450498,7.28,205.53,205.46,7.2]
[1756612452901,7.29,205.57,205.46,7.2]
[1756612454198,7.29,205.57,205.49,7.2]
[1756612454405,7.29,205.61,205.52,7.2]
[1756612455304,327.2,205.62,205.55,7.2]
[1756612457109,334.49,205.62,205.55,7.2]
[1756612458810,7.29,205.62,205.55,7.2]
[1756612466506,7.28,205.69,205.55,7.2]
[1756612466702,7.28,205.71,205.61,7.2]
[1756612466900,7.28,205.71,205.5,7.2]
[1756612467101,7.28,205.71,205.63,2.10940497]
[1756612467306,7.28,205.71,205.62,9.30940497]
[1756612467610,7.28,205.71,205.62,7.2]
[1756612468110,7.28,205.7,205.58,9.30940497]
[1756612468310,7.28,205.75,205.58,2.10940497]
[1756612468513,6.92,205.76,205.58,9.30940497]
[1756612469008,2.10940497,205.7,205.58,9.30940497]
[1756612469213,7.28,205.69,205.58,7.2]
[1756612469515,2.10940497,205.7,205.58,9.30940497]
[1756612469718,7.28,205.69,205.58,9.30940497]
[1756612469914,7.28,205.69,205.59,2.10940497]
[1756612470110,7.28,205.69,205.6,7.2]
[1756612470315,7.28,205.75,205.6,7.2]
[1756612470614,2.10940497,205.75,205.6,9.30940497]
[1756612470814,7.28,205.71,205.6,7.2]
[1756612471917,7.28,205.71,205.61,7.2]
[1756612472113,7.28,205.71,205.63,2.10940497]
[1756612472324,7.28,205.71,205.64,7.2]
[1756612472817,7.28,205.71,205.65,7.2]
[1756612473620,7.28,205.71,205.53,7.2]
[1756612473917,7.28,205.72,205.61,7.2]
[1756612474318,9.38940497,205.72,205.61,7.2]
[1756612475320,7.28,205.72,205.61,7.2]
[1756612478016,2.10940497,205.71,205.61,7.2]
[1756612478222,7.28,205.7,205.61,7.2]
[1756612478522,86.78,205.73,205.63,7.54]
[1756612480424,88.88940497,205.73,205.63,7.54]
[1756612480619,7.28,205.69,205.59,7.54]
[1756612481019,7.28,205.67,205.55,7.54]
[1756612481221,7.28,205.64,205.55,7.54]
[1756612485827,7.28,205.62,205.55,7.54]
[1756612486030,7.28,205.62,205.52,7.54]
[1756612489726,129.44,205.65,205.31,7.54]
[1756612490029,7.28,205.56,205.44,7.54]
[1756612490629,129.44,205.65,205.44,7.54]
[1756612490630,7.28,205.53,205.44,7.54]
[1756612497736,9.38940497,205.53,205.44,7.54]
[1756612498539,7.28,205.53,205.44,7.54]
[1756612498739,9.38940497,205.53,205.44,7.54]
[1756612499041,2.10940497,205.5,205.41,7.54]
[1756612499338,7.28,205.49,205.41,7.54]
[1756612500739,7.28,205.53,205.44,7.54]
[1756612501133,7.28,205.51,205.41,7.54]
[1756612502044,7.28,205.49,205.41,7.54]
[1756612504542,7.28,205.56,205.47,7.54]
[1756612506350,2.10940497,205.59,205.47,7.54]
[1756612506551,7.28,205.61,205.5,7.54]
[1756612508552,129.86,205.64,205.46,7.68]
[1756612508553,7.26,205.55,205.46,7.68]
[1756612508754,7.26,205.52,205.46,7.68]
[1756612509648,7.26,205.52,205.42,7.68]
[1756612516456,2.10940497,205.51,205.42,7.68]
[1756612517156,7.26,205.5,205.42,7.68]
[1756612520356,7.26,205.54,205.43,7.68]
[1756612520559,7.26,205.54,205.46,7.68]
[1756612520859,9.36940497,205.54,205.46,7.68]
[1756612522758,7.26,205.54,205.46,7.68]
[1756612537874,9.36940497,205.54,205.46,7.68]
[1756612538173,7.26,205.54,205.46,7.68]
[1756612540170,7.28,205.51,205.31,7.9]
[1756612540375,7.28,205.51,205.39,7.9]
[1756612540775,7.28,205.49,205.4,7.9]
[1756612541278,7.28,205.46,205.4,7.9]
[1756612542378,7.28,205.46,205.36,7.9]
[1756612543077,9.38940497,205.46,205.36,7.9]
[1756612545681,7.28,205.42,205.31,7.9]
[1756612546978,7.28,205.39,205.31,7.9]
[1756612549277,2.10940497,205.48,205.31,2.10940497]
[1756612549481,7.28,205.43,205.32,7.9]
[1756612552778,2.10940497,205.41,205.32,7.9]
[1756612552984,7.28,205.4,205.32,7.9]
[1756612559989,2.10940497,205.46,205.35,7.9]
[1756612560285,9.38940497,205.46,205.35,7.9]
[1756612561585,2.10940497,205.43,205.35,7.9]
[1756612562786,7.28,205.42,205.35,7.9]
[1756612563488,7.28,205.42,205.31,7.9]
[1756612564088,7.28,205.39,205.31,7.9]
[1756612564287,7.28,205.37,205.31,7.9]
[1756612577497,9.36940497,205.4,205.31,7.9]
[1756612578194,7.26,205.4,205.31,7.9]
[1756612594912,135.8,205.4,205.31,7.9]
[1756612595413,2.10940497,205.38,205.31,7.9]
[1756612595611,7.26,205.37,205.31,7.9]
[1756612600414,7.26,205.37,205.15,2.10940497]
[1756612600415,7.29,205.35,205.26,7.82]
[1756612600914,7.29,205.29,205.22,7.82]
[1756612601113,69.65,205.29,205.22,7.82]
[1756612603917,71.75940497,205.29,205.22,7.82]
[1756612604517,9.39940497,205.29,205.22,7.82]
[1756612605516,7.29,205.29,205.22,7.82]
[1756612605718,9.39940497,205.29,205.22,7.82]
[1756612609516,2.10940497,205.26,205.22,7.82]
[1756612610022,7.29,205.26,205.14,7.82]
[1756612610716,2.10940497,205.28,205.14,7.82]
[1756612610924,2.10940497,205.28,205.17,7.82]
[1756612611215,9.39940497,205.29,205.17,7.82]
[1756612611421,65.84,205.34,205.2,7.82]
[1756612611617,2.10940497,205.32,205.2,7.82]
[1756612612419,7.29,205.33,205.2,7.82]
[1756612612619,2.10940497,205.32,205.2,7.82]
[1756612614127,2.10940497,205.32,205.2,2.10940497]
[1756612614327,2.10940497,205.32,205.21,7.82]
[1756612615727,7.29,205.31,205.21,7.82]
[1756612615927,9.39940497,205.29,205.21,7.82]
[1756612620132,7.29,205.29,205.21,7.82]
[1756612621733,7.29,205.26,205.1,0.84801521]
[1756612621937,7.29,205.26,205.13,7.82]
[1756612622137,7.29,205.23,205.13,7.82]
[1756612624530,9.39940497,205.23,205.13,7.82]
[1756612626338,7.29,205.23,205.13,7.82]
[1756612626536,9.39940497,205.23,205.13,7.82]
[1756612634041,7.29,205.23,205.13,7.82]
[1756612634242,2.10940497,205.22,205.13,7.82]
[1756612635244,7.29,205.23,205.13,7.82]
[1756612635444,9.39940497,205.23,205.13,7.82]
[1756612639749,7.29,205.23,205.13,7.82]
[1756612647247,1.35489068,205.19,205.13,9.17489068]
[1756612648554,1.35489068,205.19,205.13,7.82]
[1756612648751,1.35489068,205.19,205.13,9.17489068]
[1756612649257,7.19,205.21,205.13,7.82]
[1756612652454,7.19,205.19,205.13,7.82]
[1756612654960,341.89,205.36,205.13,7.82]
[1756612654961,7.19,205.25,205.13,7.82]
[1756612655161,2.11688465,205.24,205.13,7.82]
[1756612656361,7.19,205.25,205.14,7.85]
[1756612656663,7.19,205.25,205.17,7.85]
[1756612657764,9.30688465,205.25,205.17,7.85]
[1756612659668,2.11688465,205.24,205.17,7.85]
[1756612662471,7.27,205.23,205.17,7.85]
[1756612666271,2.11688465,205.24,205.17,7.85]
[1756612668072,9.38688465,205.26,205.17,7.85]
[1756612668573,7.27,205.26,205.17,7.85]
[1756612668774,9.38688465,205.26,205.17,7.85]
[1756612669073,7.27,205.26,205.17,7.85]
[1756612669477,327.28,205.36,205.08,9.82]
[1756612669478,9.38688465,205.3,205.09,7.58]
[1756612669673,9.38688465,205.3,205.19,7.58]
[1756612677781,7.27,205.3,205.19,7.58]
[1756612679386,9.38688465,205.33,205.22,7.58]
[1756612679684,7.27,205.33,205.22,7.58]
[1756612680487,7.27,205.37,205.25,7.58]
[1756612681987,7.27,205.37,205.28,7.58]
[1756612683690,7.28,205.42,205.31,7.58]
[1756612685689,7.28,205.39,205.28,7.58]
[1756612686188,2.11688465,205.34,205.28,7.58]
[1756612686492,7.28,205.33,205.24,7.58]
[1756612689395,7.29,205.38,205.24,7.58]
[1756612689593,7.29,205.38,205.27,7.85]
[1756612690900,7.29,205.38,205.3,7.85]
[1756612694701,7.29,205.38,205.16,7.85]
[1756612694901,7.29,205.38,205.25,7.85]
[1756612695800,7.29,205.36,205.25,7.85]
[1756612696900,7.29,205.36,205.25,9.96688465]
[1756612697100,7.29,205.36,205.25,7.85]
[1756612699802,7.29,205.36,205.27,2.11688465]
[1756612700001,7.29,205.36,205.28,7.85]
[1756612701403,7.29,205.4,205.28,7.85]
[1756612701598,7.29,205.4,205.15,2.11688465]
[1756612701599,7.29,205.4,205.31,7.85]
[1756612702700,9.40688465,205.4,205.31,7.85]
[1756612704002,9.40688465,205.4,205.28,7.85]
[1756612705808,7.28,205.36,205.28,7.85]
[1756612724625,328.28765373,205.47,205.32,7.48]
[1756612724626,7.29,205.41,205.32,7.48]
[1756612726923,7.29,205.41,205.33,7.48]
[1756612729923,7.29,205.41,205.35,2.11688465]
[1756612730122,7.29,205.41,205.36,7.48]
[1756612730319,7.29,205.41,205.35,2.11688465]
[1756612731526,7.29,205.49,205.38,2.11688465]
[1756612731725,7.29,205.49,205.39,7.48]
[1756612732527,7.29,205.49,205.39,9.59688465]
[1756612733029,2.11688465,205.52,205.39,9.59688465]
[1756612733425,7.29,205.51,205.39,9.59688465]
[1756612733626,2.11688465,205.52,205.39,9.59688465]
[1756612734126,2.11688465,205.5,205.39,9.59688465]
[1756612734326,7.29,205.49,205.39,9.59688465]
[1756612735227,2.11688465,205.5,205.39,9.59688465]
[1756612735531,2.11688465,205.47,205.39,7.48]
[1756612735833,7.29,205.46,205.39,7.48]
[1756612736330,7.29,205.46,205.34,7.48]
[1756612738132,7.29,205.46,205.37,7.48]
[1756612745243,7.29,205.46,205.38,2.11688465]
[1756612745746,7.29,205.46,205.39,7.48]
[1756612746843,7.29,205.5,205.39,7.48]
[1756612752048,7.28,205.48,205.39,7.48]
[1756612756450,7.28,205.45,205.36,7.85]
[1756612758652,7.28,205.45,205.39,7.85]
[1756612758853,7.28,205.5,205.39,7.85]
[1756612760149,7.28,205.5,205.41,7.85]
[1756612776560,7.28,205.54,205.43,2.11688465]
[1756612776765,7.28,205.54,205.47,7.85]
[1756612785068,7.28,205.54,205.42,7.25]
[1756612785273,7.28,205.52,205.42,7.25]
[1756612790374,7.28,205.52,205.45,7.25]
[1756612791577,7.28,205.56,205.45,7.25]
[1756612794379,7.28,205.56,205.48,7.25]
[1756612794683,7.28,205.56,205.48,9.36688465]
[1756612796074,41.48,205.57,205.5,2.11688465]
[1756612796278,48.76,205.57,205.51,7.25]
[1756612796776,7.28,205.57,205.51,7.25]
[1756612797485,7.28,205.62,205.51,7.25]
[1756612797672,7.28,205.62,205.55,7.25]
[1756612801387,7.28,205.66,205.56,7.25]
[1756612801586,7.28,205.66,205.58,7.25]
[1756612802282,2.11688465,205.64,205.53,7.25]
[1756612802485,7.28,205.63,205.53,7.25]
[1756612802885,7.28,205.63,205.54,7.25]
[1756612803079,47.6,205.68,205.57,7.25]
[1756612803277,7.28,205.67,205.57,7.25]
[1756612803686,7.28,205.65,205.57,7.25]
[1756612806388,7.28,205.7,205.6,7.25]
[1756612808989,7.28,205.67,205.6,7.25]
[1756612809485,7.28,205.67,205.55,2.11688465]
[1756612809686,7.28,205.67,205.56,7.24]
[1756612810793,7.28,205.64,205.56,7.24]
[1756612812989,7.28,205.68,205.57,7.24]
[1756612814291,7.28,205.65,205.57,7.24]
[1756612814487,7.28,205.65,205.53,7.24]
[1756612814684,7.28,205.62,205.53,7.24]
[1756612814882,2.11688465,205.63,205.53,7.24]
[1756612814883,2.11688465,205.61,205.53,7.24]
[1756612815085,7.28,205.6,205.49,7.24]
[1756612815994,9.39688465,205.6,205.49,7.24]
[1756612817194,7.28,205.58,205.49,7.24]
[1756612817794,7.28,205.55,205.42,2.11688465]
[1756612817995,7.28,205.55,205.43,7.24]
[1756612818395,2.11688465,205.53,205.43,7.24]
[1756612818695,7.28,205.52,205.43,7.24]
[1756612818993,7.28,205.52,205.42,2.11688465]
[1756612818994,7.28,205.47,205.36,7.24]
[1756612819593,2.11688465,205.45,205.36,7.24]
[1756612819795,7.28,205.44,205.36,7.24]
[1756612820495,6.92,205.5,205.36,7.24]
[1756612820696,7.28,205.47,205.36,7.24]
[1756612821594,7.28,205.44,205.36,7.24]
[1756612822094,7.28,205.41,205.27,2.11688465]
[1756612822399,7.28,205.41,205.28,7.24]
[1756612823197,9.39688465,205.39,205.28,7.24]
[1756612826402,7.28,205.39,205.28,7.24]
[1756612827700,7.28,205.39,205.28,2.11688465]
[1756612827897,7.28,205.39,205.29,7.24]
[1756612829001,9.39688465,205.39,205.29,7.24]
[1756612830202,7.28,205.39,205.29,7.24]
[1756612830402,2.11688465,205.38,205.29,7.24]
[1756612830803,7.28,205.39,205.29,7.24]
[1756612831005,9.39688465,205.39,205.29,7.24]
[1756612831297,7.28,205.39,205.29,7.24]
[1756612831796,9.39688465,205.42,205.31,7.24]
[1756612833301,2.11688465,205.39,205.31,7.24]
[1756612833502,7.28,205.38,205.31,7.24]
[1756612836009,7.28,205.35,205.25,7.24]
[1756612836500,7.28,205.32,205.25,7.24]
[1756612840406,9.39688465,205.32,205.25,7.24]
[1756612842812,7.28,205.32,205.25,7.24]
[1756612843310,9.39688465,205.32,205.25,7.24]
[1756612843512,7.28,205.32,205.25,7.24]
[1756612843811,9.39688465,205.32,205.25,7.24]
[1756612844108,7.28,205.32,205.25,7.24]
[1756612844316,7.28,205.36,205.27,7.77]